fUSD/lending_fUSD_20241016
["ID","MTS","AMOUNT","RATE_DAILY","PERIOD"]
[340329368,1729050646187,-1062.21,0.00010995,2]
[340329369,1729050646196,-1618.19,0.00010995,2]
[340329370,1729050646209,-500.0,0.00010995,2]
[340329371,1729050646222,-500.0,0.00010995,2]
[340329372,1729050646231,-345.65329746,0.00010995,2]
[340329373,1729050646240,-500.0,0.00010996,2]
[340329374,1729050646250,-500.0,0.00010996,2]
[340329375,1729050646259,-825.11,0.00010996,2]
[340329376,1729050646269,-500.0,0.00010996,2]
[340329377,1729050646279,-500.0,0.00010996,2]
[340329378,1729050646288,-1008.01,0.00010996,2]
[340329379,1729050646297,-500.0,0.00010996,2]
[340329380,1729050646307,-1070.9,0.00010996,2]
[340329381,1729050646316,-1047.72,0.00010996,2]
[340329382,1729050646327,-1528.5,0.00010996,2]
[340329383,1729050646336,-500.0,0.00010996,2]
[340329384,1729050646345,-1095.39,0.00010996,2]
[340329385,1729050646355,-1760.06,0.00010996,2]
[340329386,1729050646364,-500.0,0.00010996,2]
[340329387,1729050646374,-1130.61,0.00010996,2]
[340329388,1729050646384,-500.0,0.00010996,2]
[340329389,1729050646394,-1138.02,0.00010996,2]
[340329390,1729050646403,-1105.21,0.00010996,2]
[340329391,1729050646412,-500.0,0.00010996,2]
[340329392,1729050646421,-500.0,0.00010996,2]
[340329393,1729050646431,-500.0,0.00010996,2]
[340329394,1729050646440,-500.0,0.00010996,2]
[340329395,1729050646451,-500.0,0.00010996,2]
[340329396,1729050646460,-500.0,0.00010996,2]
[340329397,1729050646470,-500.0,0.00010996,2]
[340329398,1729050646479,-500.0,0.00010996,2]
[340329399,1729050646489,-629.54,0.00010996,2]
[340329400,1729050646498,-1052.75,0.00010996,2]
[340329401,1729050646508,-646.96,0.00010996,2]
[340329402,1729050646518,-500.0,0.00010996,2]
[340329403,1729050646527,-982.22,0.00010996,2]
[340329404,1729050646537,-500.0,0.00010996,2]
[340329405,1729050646547,-665.18,0.00010996,2]
[340329406,1729050646557,-500.0,0.00010996,2]
[340329407,1729050646566,-500.0,0.00010996,2]
[340329408,1729050646576,-500.0,0.00010996,2]
[340329409,1729050646585,-775.75,0.00010996,2]
[340329410,1729050646595,-610.03,0.00010996,2]
[340329411,1729050646604,-1728.65,0.00010996,2]
[340329412,1729050646614,-323.4393354,0.00010996,2]
[340329413,1729050646623,-500.0,0.00010996,2]
[340329414,1729050646633,-500.0,0.00010996,2]
[340329415,1729050646643,-1118.81,0.00010996,2]
[340329416,1729050646653,-500.0,0.00010996,2]
[340329417,1729050646664,-500.0,0.00010996,2]
[340329418,1729050646674,-500.0,0.00010996,2]
[340329419,1729050646684,-500.0,0.00010996,2]
[340329420,1729050646694,-899.26,0.00010996,2]
[340329421,1729050646706,-500.0,0.00010996,2]
[340329422,1729050646716,-500.0,0.00010996,2]
[340329423,1729050646726,-828.83,0.00010996,2]
[340329424,1729050646736,-500.0,0.00010996,2]
[340329425,1729050646745,-1087.89,0.00010996,2]
[340329426,1729050646755,-1259.66,0.00010996,2]
[340329427,1729050646764,-921.87,0.00010996,2]
[340329428,1729050646774,-596.72,0.00010996,2]
[340329429,1729050646784,-500.0,0.00010996,2]
[340329430,1729050646793,-500.0,0.00010996,2]
[340329431,1729050646802,-1312.5,0.00010996,2]
[340329432,1729050646811,-2235.01,0.00010996,2]
[340329433,1729050646821,-500.0,0.00010996,2]
[340329434,1729050646830,-574.63,0.00010996,2]
[340329435,1729050646840,-500.0,0.00010996,2]
[340329436,1729050646850,-500.0,0.00010996,2]
[340329437,1729050646860,-731.4,0.00010996,2]
[340329438,1729050646870,-9871.27,0.00010996,2]
[340329439,1729050646879,-500.0,0.00010996,2]
[340329440,1729050646889,-861.99,0.00010996,2]
[340329441,1729050646899,-829.73,0.00010996,2]
[340329442,1729050646909,-500.0,0.00010996,2]
[340329443,1729050646918,-802.61,0.00010996,2]
[340329444,1729050646928,-1863.09,0.00010996,2]
[340329445,1729050646937,-849.77,0.00010996,2]
[340329446,1729050646947,-2170.58,0.00010996,2]
[340329447,1729050646958,-500.0,0.00010996,2]
[340329448,1729050646967,-532.74,0.00010996,2]
[340329449,1729050646977,-1013.65,0.00010996,2]
[340329450,1729050646986,-500.0,0.00010996,2]
[340329451,1729050646996,-500.0,0.00010996,2]
[340329452,1729050647005,-948.62,0.00010996,2]
[340329453,1729050647015,-500.0,0.00010996,2]
[340329454,1729050647024,-500.0,0.00010996,2]
[340329455,1729050647034,-500.0,0.00010996,2]
[340329456,1729050647044,-794.09,0.00010996,2]
[340329457,1729050647053,-2010.01,0.00010996,2]
[340329458,1729050647063,-500.0,0.00010996,2]
[340329459,1729050647072,-2787.88,0.00010996,2]
[340329460,1729050647082,-641.8,0.00010996,2]
[340329461,1729050647091,-500.0,0.00010996,2]
[340329462,1729050647100,-500.0,0.00010996,2]
[340329463,1729050647110,-1246.46,0.00010996,2]
[340329464,1729050647119,-500.0,0.00010996,2]
[340329465,1729050647256,-511.29,0.00010996,2]
[340329466,1729050647266,-561.0,0.00010997,2]
[340329467,1729050647276,-802.25,0.00010997,2]
[340329468,1729050647285,-972.74,0.00010997,2]
[340329469,1729050647295,-500.0,0.00010997,2]
[340329470,1729050647304,-500.0,0.00010997,2]
[340329471,1729050647313,-577.37,0.00010997,2]
[340329472,1729050647323,-500.0,0.00010997,2]
[340329473,1729050647332,-500.0,0.00010997,2]
[340329474,1729050647342,-500.0,0.00010997,2]
[340329475,1729050647351,-557.07,0.00010997,2]
[340329476,1729050647361,-500.0,0.00010997,2]
[340329477,1729050647371,-825.11,0.00010997,2]
[340329478,1729050647380,-825.11,0.00010997,2]
[340329479,1729050647390,-500.0,0.00010997,2]
[340329480,1729050647399,-500.0,0.00010997,2]
[340329481,1729050647408,-500.0,0.00010997,2]
[340329482,1729050647418,-196.46998865,0.00010997,2]
[340329483,1729050647427,-500.0,0.00010997,2]
[340329484,1729050647436,-500.0,0.00010997,2]
[340329485,1729050647447,-597.44,0.00010997,2]
[340329486,1729050647457,-500.0,0.00010997,2]
[340329487,1729050647467,-500.0,0.00010997,2]
[340329488,1729050647478,-500.0,0.00010997,2]
[340329489,1729050647489,-500.0,0.00010997,2]
[340329490,1729050647499,-500.0,0.00010997,2]
[340329491,1729050647509,-500.0,0.00010997,2]
[340329492,1729050647519,-500.0,0.00010997,2]
[340329493,1729050647529,-500.0,0.00010997,2]
[340329494,1729050647538,-1008.01,0.00010997,2]
[340329495,1729050647548,-1008.01,0.00010997,2]
[340329496,1729050647558,-500.0,0.00010997,2]
[340329497,1729050647567,-500.0,0.00010997,2]
[340329498,1729050647578,-500.0,0.00010997,2]
[340329499,1729050647589,-500.0,0.00010997,2]
[340329500,1729050647600,-365.34420578,0.00010997,2]
[340329501,1729050647610,-813.85,0.00010997,2]
[340329502,1729050647621,-813.85,0.00010997,2]
[340329503,1729050647631,-813.85,0.00010997,2]
[340329504,1729050647642,-1070.9,0.00010997,2]
[340329505,1729050647655,-1070.9,0.00010997,2]
[340329506,1729050647667,-1047.72,0.00010997,2]
[340329507,1729050647677,-1047.72,0.00010997,2]
[340329508,1729050647687,-1038.3,0.00010997,2]
[340329509,1729050647698,-1038.3,0.00010997,2]
[340329510,1729050647708,-1038.3,0.00010997,2]
[340329511,1729050647719,-1528.5,0.00010997,2]
[340329512,1729050647728,-1528.5,0.00010997,2]
[340329513,1729050647740,-500.0,0.00010997,2]
[340329514,1729050647751,-500.0,0.00010997,2]
[340329515,1729050647761,-1095.39,0.00010997,2]
[340329516,1729050647771,-1095.39,0.00010997,2]
[340329517,1729050647780,-1760.06,0.00010997,2]
[340329518,1729050647790,-1760.06,0.00010997,2]
[340329519,1729050647799,-1667.72,0.00010997,2]
[340329520,1729050647809,-1667.72,0.00010997,2]
[340329521,1729050647818,-1667.72,0.00010997,2]
[340329522,1729050647828,-500.0,0.00010997,2]
[340329523,1729050647837,-500.0,0.00010997,2]
[340329524,1729050647847,-1130.61,0.00010997,2]
[340329525,1729050647856,-1130.61,0.00010997,2]
[340329526,1729050647866,-372.62349569,0.00010997,2]
[340329527,1729050647876,-1138.02,0.00010997,2]
[340329528,1729050647885,-1138.02,0.00010997,2]
[340329529,1729050647895,-1105.21,0.00010997,2]
[340329530,1729050647905,-1105.21,0.00010997,2]
[340329531,1729050647914,-500.0,0.00010997,2]
[340329532,1729050647924,-500.0,0.00010997,2]
[340329533,1729050647934,-500.0,0.00010997,2]
[340329534,1729050647943,-500.0,0.00010997,2]
[340329535,1729050647955,-500.0,0.00010997,2]
[340329536,1729050647965,-500.0,0.00010997,2]
[340329537,1729050647974,-500.0,0.00010997,2]
[340329538,1729050647984,-500.0,0.00010997,2]
[340329539,1729050647993,-517.84,0.00010997,2]
[340329540,1729050648003,-517.84,0.00010997,2]
[340329541,1729050648012,-517.84,0.00010997,2]
[340329542,1729050648023,-500.0,0.00010997,2]
[340329543,1729050648034,-500.0,0.00010997,2]
[340329544,1729050648043,-500.0,0.00010997,2]
[340329545,1729050648053,-621.97081339,0.00010997,2]
[340329546,1729050648062,-500.0,0.00010997,2]
[340329547,1729050648071,-636.15252897,0.00010997,2]
[340329548,1729050648081,-500.0,0.00010997,2]
[340329549,1729050648091,-500.0,0.00010997,2]
[340329550,1729050648101,-448.78626804,0.00010997,2]
[340329551,1729050648110,-500.0,0.00010997,2]
[340329552,1729050648120,-500.0,0.00010997,2]
[340329553,1729050648129,-500.0,0.00010997,2]
[340329554,1729050648139,-536.27010841,0.00010997,2]
[340329555,1729050648148,-500.0,0.00010997,2]
[340329556,1729050648157,-500.0,0.00010997,2]
[340329557,1729050648167,-1012.22,0.00010997,2]
[340329558,1729050648176,-1012.22,0.00010997,2]
[340329559,1729050648186,-1012.22,0.00010997,2]
[340329560,1729050648195,-500.0,0.00010997,2]
[340329561,1729050648205,-500.0,0.00010997,2]
[340329562,1729050648215,-500.0,0.00010997,2]
[340329563,1729050648224,-629.54,0.00010997,2]
[340329564,1729050648234,-629.54,0.00010997,2]
[340329565,1729050648244,-1052.75,0.00010997,2]
[340329566,1729050648254,-1052.75,0.00010997,2]
[340329567,1729050648264,-1839.09,0.00010997,2]
[340329568,1729050648273,-1839.09,0.00010997,2]
[340329569,1729050648285,-1839.09,0.00010997,2]
[340329570,1729050648294,-500.0,0.00010997,2]
[340329571,1729050648303,-321.80553045,0.00010997,2]
[340329572,1729050648313,-646.96,0.00010997,2]
[340329573,1729050648322,-646.96,0.00010997,2]
[340329574,1729050648332,-500.0,0.00010997,2]
[340329575,1729050648341,-500.0,0.00010997,2]
[340329576,1729050648351,-982.22,0.00010997,2]
[340329577,1729050648361,-982.22,0.00010997,2]
[340329578,1729050648370,-500.0,0.00010997,2]
[340329579,1729050648379,-500.0,0.00010997,2]
[340329580,1729050648388,-665.18,0.00010997,2]
[340329581,1729050648397,-665.18,0.00010997,2]
[340329582,1729050648406,-500.0,0.00010997,2]
[340329583,1729050648415,-500.0,0.00010997,2]
[340329584,1729050648425,-500.0,0.00010997,2]
[340329585,1729050648435,-500.0,0.00010997,2]
[340329586,1729050648445,-500.0,0.00010997,2]
[340329587,1729050648455,-775.75,0.00010997,2]
[340329588,1729050648465,-500.0,0.00010997,2]
[340329589,1729050648474,-775.75,0.00010997,2]
[340329590,1729050648484,-1196.74,0.00010997,2]
[340329591,1729050648493,-1196.74,0.00010997,2]
[340329592,1729050648502,-1196.74,0.00010997,2]
[340329593,1729050648512,-1615.87,0.00010997,2]
[340329594,1729050648521,-1615.87,0.00010997,2]
[340329595,1729050648531,-1615.87,0.00010997,2]
[340329596,1729050648541,-500.0,0.00010997,2]
[340329597,1729050648551,-500.0,0.00010997,2]
[340329598,1729050648560,-500.0,0.00010997,2]
[340329599,1729050648570,-610.03,0.00010997,2]
[340329600,1729050648579,-610.03,0.00010997,2]
[340329601,1729050648589,-1728.65,0.00010997,2]
[340329602,1729050648598,-1728.65,0.00010997,2]
[340329603,1729050648608,-500.0,0.00010997,2]
[340329604,1729050648617,-500.0,0.00010997,2]
[340329605,1729050648627,-500.0,0.00010997,2]
[340329606,1729050648638,-500.0,0.00010997,2]
[340329607,1729050648647,-500.0,0.00010997,2]
[340329608,1729050648659,-500.0,0.00010997,2]
[340329609,1729050648669,-1118.81,0.00010997,2]
[340329610,1729050648679,-500.0,0.00010997,2]
[340329611,1729050648688,-1118.81,0.00010997,2]
[340329612,1729050648697,-500.0,0.00010997,2]
[340329613,1729050648709,-500.0,0.00010997,2]
[340329614,1729050648719,-500.0,0.00010997,2]
[340329615,1729050648728,-527.13133948,0.00010997,2]
[340329616,1729050648738,-1561.85,0.00010997,2]
[340329617,1729050648748,-1561.85,0.00010997,2]
[340329618,1729050648757,-1561.85,0.00010997,2]
[340329619,1729050648766,-500.0,0.00010997,2]
[340329620,1729050648776,-500.0,0.00010997,2]
[340329621,1729050648785,-500.0,0.00010997,2]
[340329622,1729050648795,-500.0,0.00010997,2]
[340329623,1729050648804,-899.26,0.00010997,2]
[340329624,1729050648814,-899.26,0.00010997,2]
[340329625,1729050648823,-500.0,0.00010997,2]
[340329626,1729050648833,-500.0,0.00010997,2]
[340329627,1729050648842,-500.0,0.00010997,2]
[340329628,1729050648851,-500.0,0.00010997,2]
[340329629,1729050648860,-842.32,0.00010997,2]
[340329630,1729050648870,-828.83,0.00010997,2]
[340329631,1729050648879,-842.32,0.00010997,2]
[340329632,1729050648888,-828.83,0.00010997,2]
[340329633,1729050648898,-842.32,0.00010997,2]
[340329634,1729050648907,-500.0,0.00010997,2]
[340329635,1729050648917,-500.0,0.00010997,2]
[340329636,1729050648928,-1087.89,0.00010997,2]
[340329637,1729050648938,-1087.89,0.00010997,2]
[340329638,1729050648948,-508.41,0.00010997,2]
[340329639,1729050648958,-508.41,0.00010997,2]
[340329640,1729050648968,-508.41,0.00010997,2]
[340329641,1729050648979,-1259.66,0.00010997,2]
[340329642,1729050648988,-921.87,0.00010997,2]
[340329643,1729050648998,-1259.66,0.00010997,2]
[340329644,1729050649007,-921.87,0.00010997,2]
[340329645,1729050649017,-596.72,0.00010997,2]
[340329646,1729050649026,-596.72,0.00010997,2]
[340329647,1729050649036,-500.0,0.00010997,2]
[340329648,1729050649046,-500.0,0.00010997,2]
[340329649,1729050649056,-802.11,0.00010997,2]
[340329650,1729050649066,-802.11,0.00010997,2]
[340329651,1729050649076,-802.11,0.00010997,2]
[340329652,1729050649086,-1152.7,0.00010997,2]
[340329653,1729050649096,-1152.7,0.00010997,2]
[340329654,1729050649106,-1152.7,0.00010997,2]
[340329655,1729050649115,-500.0,0.00010997,2]
[340329656,1729050649125,-500.0,0.00010997,2]
[340329657,1729050649135,-1312.5,0.00010997,2]
[340329658,1729050649144,-1312.5,0.00010997,2]
[340329659,1729050649153,-2235.01,0.00010997,2]
[340329660,1729050649163,-2235.01,0.00010997,2]
[340329661,1729050649172,-1148.13,0.00010997,2]
[340329662,1729050649182,-500.0,0.00010997,2]
[340329663,1729050649191,-1148.13,0.00010997,2]
[340329664,1729050649201,-500.0,0.00010997,2]
[340329665,1729050649210,-902.69,0.00010997,2]
[340329666,1729050649220,-1148.13,0.00010997,2]
[340329667,1729050649229,-902.69,0.00010997,2]
[340329668,1729050649239,-902.69,0.00010997,2]
[340329669,1729050649249,-574.63,0.00010997,2]
[340329670,1729050649258,-574.63,0.00010997,2]
[340329671,1729050649268,-1602.64,0.00010997,2]
[340329672,1729050649278,-1602.64,0.00010997,2]
[340329673,1729050649288,-1602.64,0.00010997,2]
[340329674,1729050649298,-500.0,0.00010997,2]
[340329675,1729050649307,-500.0,0.00010997,2]
[340329676,1729050649317,-500.0,0.00010997,2]
[340329677,1729050649327,-500.0,0.00010997,2]
[340329678,1729050649337,-731.4,0.00010997,2]
[340329679,1729050649346,-731.4,0.00010997,2]
[340329680,1729050649356,-9871.27,0.00010997,2]
[340329681,1729050649366,-9871.27,0.00010997,2]
[340329682,1729050649375,-500.0,0.00010997,2]
[340329683,1729050649385,-500.0,0.00010997,2]
[340329684,1729050649395,-4383.87,0.00010997,2]
[340329685,1729050649404,-4383.87,0.00010997,2]
[340329686,1729050649413,-4383.87,0.00010997,2]
[340329687,1729050649423,-861.99,0.00010997,2]
[340329688,1729050649432,-861.99,0.00010997,2]
[340329689,1729050649441,-500.0,0.00010997,2]
[340329690,1729050649452,-829.73,0.00010997,2]
[340329691,1729050649461,-500.0,0.00010997,2]
[340329692,1729050649471,-829.73,0.00010997,2]
[340329693,1729050649481,-802.61,0.00010997,2]
[340329694,1729050649490,-1863.09,0.00010997,2]
[340329695,1729050649499,-802.61,0.00010997,2]
[340329696,1729050649509,-1863.09,0.00010997,2]
[340329697,1729050649519,-418.13570315,0.00010997,2]
[340329698,1729050649528,-849.77,0.00010997,2]
[340329699,1729050649538,-849.77,0.00010997,2]
[340329700,1729050649548,-2170.58,0.00010997,2]
[340329701,1729050649558,-2170.58,0.00010997,2]
[340329702,1729050649567,-548.0,0.00010997,2]
[340329703,1729050649577,-548.0,0.00010997,2]
[340329704,1729050649586,-500.0,0.00010997,2]
[340329705,1729050649596,-548.0,0.00010997,2]
[340329706,1729050649605,-500.0,0.00010997,2]
[340329707,1729050649615,-532.74,0.00010997,2]
[340329708,1729050649624,-532.74,0.00010997,2]
[340329709,1729050649634,-1013.65,0.00010997,2]
[340329710,1729050649643,-500.0,0.00010997,2]
[340329711,1729050649653,-1013.65,0.00010997,2]
[340329712,1729050649665,-500.0,0.00010997,2]
[340329713,1729050649675,-737.35,0.00010997,2]
[340329714,1729050649684,-737.35,0.00010997,2]
[340329715,1729050649695,-500.0,0.00010997,2]
[340329716,1729050649706,-737.35,0.00010997,2]
[340329717,1729050649716,-500.0,0.00010997,2]
[340329718,1729050649726,-948.62,0.00010997,2]
[340329719,1729050649736,-948.62,0.00010997,2]
[340329720,1729050649746,-1804.75,0.00010997,2]
[340329721,1729050649755,-1804.75,0.00010997,2]
[340329722,1729050649764,-1804.75,0.00010997,2]
[340329723,1729050649774,-500.0,0.00010997,2]
[340329724,1729050649784,-500.0,0.00010997,2]
[340329725,1729050649794,-500.0,0.00010997,2]
[340329726,1729050649804,-500.0,0.00010997,2]
[340329727,1729050649813,-500.0,0.00010997,2]
[340329728,1729050649822,-500.0,0.00010997,2]
[340329729,1729050649833,-500.0,0.00010997,2]
[340329730,1729050649842,-1132.82,0.00010997,2]
[340329731,1729050649851,-1132.82,0.00010997,2]
[340329732,1729050649861,-1132.82,0.00010997,2]
[340329733,1729050649870,-500.0,0.00010997,2]
[340329734,1729050649880,-500.0,0.00010997,2]
[340329735,1729050649889,-794.09,0.00010997,2]
[340329736,1729050649899,-794.09,0.00010997,2]
[340329737,1729050649909,-500.0,0.00010997,2]
[340329738,1729050649919,-500.0,0.00010997,2]
[340329739,1729050649929,-500.0,0.00010997,2]
[340329740,1729050649939,-2010.01,0.00010997,2]
[340329741,1729050649949,-2010.01,0.00010997,2]
[340329742,1729050649958,-650.03,0.00010997,2]
[340329743,1729050649968,-650.03,0.00010997,2]
[340329744,1729050649978,-650.03,0.00010997,2]
[340329745,1729050649989,-1062.21,0.00010997,2]
[340329746,1729050649998,-1062.21,0.00010997,2]
[340329747,1729050650126,-1062.21,0.00010997,2]
[340329748,1729050650137,-500.0,0.00010997,2]
[340329749,1729050650146,-334.04830006,0.00010997,2]
[340329750,1729050650156,-2787.88,0.00010997,2]
[340329751,1729050650166,-2787.88,0.00010997,2]
[340329752,1729050650175,-1618.19,0.00010997,2]
[340329753,1729050650185,-1618.19,0.00010997,2]
[340329754,1729050650194,-1618.19,0.00010997,2]
[340329755,1729050650205,-641.8,0.00010997,2]
[340329756,1729050650219,-500.0,0.00010997,2]
[340329757,1729050650229,-641.8,0.00010997,2]
[340329758,1729050650238,-500.0,0.00010997,2]
[340329759,1729050650248,-500.0,0.00010997,2]
[340329760,1729050650258,-500.0,0.00010997,2]
[340329761,1729050650267,-1246.46,0.00010997,2]
[340329762,1729050650277,-1246.46,0.00010997,2]
[340329763,1729050650286,-500.0,0.00010997,2]
[340329764,1729050650296,-500.0,0.00010997,2]
[340329765,1729050650306,-511.29,0.00010997,2]
[340329766,1729050650315,-511.29,0.00010997,2]
[340329767,1729050650325,-2419.57308222,0.00010997,2]
[340329768,1729050650335,-802.25,0.00010998,2]
[340329769,1729050650345,-802.25,0.00010998,2]
[340329770,1729050650354,-802.25,0.00010998,2]
[340329771,1729050650363,-802.25,0.00010998,2]
[340329772,1729050650372,-802.25,0.00010998,2]
[340329773,1729050650382,-972.74,0.00010998,2]
[340329774,1729050650392,-972.74,0.00010998,2]
[340329775,1729050650402,-972.74,0.00010998,2]
[340329776,1729050650411,-972.74,0.00010998,2]
[340329777,1729050650421,-972.74,0.00010998,2]
[340329778,1729050650431,-500.0,0.00010998,2]
[340329779,1729050650440,-500.0,0.00010998,2]
[340329780,1729050650450,-500.0,0.00010998,2]
[340329781,1729050650459,-500.0,0.00010998,2]
[340329782,1729050650469,-500.0,0.00010998,2]
[340329783,1729050650478,-577.37,0.00010998,2]
[340329784,1729050650488,-577.37,0.00010998,2]
[340329785,1729050650498,-577.37,0.00010998,2]
[340329786,1729050650507,-577.37,0.00010998,2]
[340329787,1729050650517,-577.37,0.00010998,2]
[340329788,1729050650526,-500.0,0.00010998,2]
[340329789,1729050650536,-500.0,0.00010998,2]
[340329790,1729050650546,-500.0,0.00010998,2]
[340329791,1729050650555,-500.0,0.00010998,2]
[340329792,1729050650565,-500.0,0.00010998,2]
[340329793,1729050650575,-500.0,0.00010998,2]
[340329794,1729050650585,-500.0,0.00010998,2]
[340329795,1729050650594,-500.0,0.00010998,2]
[340329796,1729050650604,-500.0,0.00010998,2]
[340329797,1729050650614,-500.0,0.00010998,2]
[340329798,1729050650624,-557.07,0.00010998,2]
[340329799,1729050650634,-557.07,0.00010998,2]
[340329800,1729050650643,-557.07,0.00010998,2]
[340329801,1729050650653,-557.07,0.00010998,2]
[340329802,1729050650665,-557.07,0.00010998,2]
[340329803,1729050650675,-500.0,0.00010998,2]
[340329804,1729050650684,-500.0,0.00010998,2]
[340329805,1729050650694,-500.0,0.00010998,2]
[340329806,1729050650708,-500.0,0.00010998,2]
[340329807,1729050650718,-500.0,0.00010998,2]
[340329808,1729050650727,-825.11,0.00010998,2]
[340329809,1729050650738,-825.11,0.00010998,2]
[340329810,1729050650747,-825.11,0.00010998,2]
[340329811,1729050650757,-825.11,0.00010998,2]
[340329812,1729050650767,-825.11,0.00010998,2]
[340329813,1729050650777,-500.0,0.00010998,2]
[340329814,1729050650786,-500.0,0.00010998,2]
[340329815,1729050650795,-500.0,0.00010998,2]
[340329816,1729050650804,-500.0,0.00010998,2]
[340329817,1729050650814,-500.0,0.00010998,2]
[340329818,1729050650824,-500.0,0.00010998,2]
[340329819,1729050650834,-500.0,0.00010998,2]
[340329820,1729050650845,-500.0,0.00010998,2]
[340329821,1729050650855,-474.16867714,0.00010998,2]
[340329822,1729050650865,-500.0,0.00010998,2]
[340329823,1729050650875,-500.0,0.00010998,2]
[340329824,1729050650885,-500.0,0.00010998,2]
[340329825,1729050650895,-500.0,0.00010998,2]
[340329826,1729050650904,-500.0,0.00010998,2]
[340329827,1729050650914,-500.0,0.00010998,2]
[340329828,1729050650924,-582.34505704,0.00010998,2]
[340329829,1729050650934,-597.44,0.00010998,2]
[340329830,1729050650943,-597.44,0.00010998,2]
[340329831,1729050650955,-597.44,0.00010998,2]
[340329832,1729050650965,-597.44,0.00010998,2]
[340329833,1729050650975,-597.44,0.00010998,2]
[340329834,1729050650985,-500.0,0.00010998,2]
[340329835,1729050650995,-500.0,0.00010998,2]
[340329836,1729050651005,-500.0,0.00010998,2]
[340329837,1729050651015,-625.48268398,0.00010998,2]
[340329838,1729050651024,-500.0,0.00010998,2]
[340329839,1729050651034,-500.0,0.00010998,2]
[340329840,1729050651042,-500.0,0.00010998,2]
[340329841,1729050651051,-500.0,0.00010998,2]
[340329842,1729050651061,-500.0,0.00010998,2]
[340329843,1729050651071,-550.19576961,0.00010998,2]
[340329844,1729050651080,-1008.01,0.00010998,2]
[340329845,1729050651089,-1008.01,0.00010998,2]
[340329846,1729050651099,-1008.01,0.00010998,2]
[340329847,1729050651108,-1008.01,0.00010998,2]
[340329848,1729050651118,-500.0,0.00010998,2]
[340329849,1729050651127,-500.0,0.00010998,2]
[340329850,1729050651138,-178.64722621,0.00010998,2]
[340329851,1729050651147,-813.85,0.00010998,2]
[340329852,1729050651156,-813.85,0.00010998,2]
[340329853,1729050651166,-813.85,0.00010998,2]
[340329854,1729050651176,-813.85,0.00010998,2]
[340329855,1729050651185,-1070.9,0.00010998,2]
[340329856,1729050651194,-1070.9,0.00010998,2]
[340329857,1729050651205,-1070.9,0.00010998,2]
[340329858,1729050651214,-1070.9,0.00010998,2]
[340329859,1729050651224,-1070.9,0.00010998,2]
[340329860,1729050651234,-1047.72,0.00010998,2]
[340329861,1729050651244,-1047.72,0.00010998,2]
[340329862,1729050651254,-1047.72,0.00010998,2]
[340329863,1729050651263,-1047.72,0.00010998,2]
[340329864,1729050651274,-1047.72,0.00010998,2]
[340329865,1729050651283,-1038.3,0.00010998,2]
[340329866,1729050651292,-1038.3,0.00010998,2]
[340329867,1729050651302,-1528.5,0.00010998,2]